Workbook

Sheet Sheet1
A1: position 1 | D1: position 2 | G1: Position 3 | N1: Magnitude | O1: İnitial Angle | W1: First Position
A2: a1 | B2: 0 | C2: 0 | D2: a2 | E2: 30 | F2: -30 | G2: a3 | H2: 90 | I2: -20 | M2: A0A | N2: =mag((X3-X2),(Y3-Y2)) -> 38.70585884 | O2: =ATAN2((X3-X2),(Y3-Y2)) -> -2.870468653 | P2: =O2/D_R -> -164.465739 | Q2: General position | W2: A0 | X2: =K14 -> 51.48195245 | Y2: =L14 -> 20.43599206 | AA2: A | AB2: =X3 -> 14.19 | AC2: =Y3 -> 10.07 | AD2: 100
A3: f1 | B3: 0 | D3: f2 | E3: 50 | G3: f3 | H3: 90 | M3: B0B | N3: =mag((X4-X5),(Y4-Y5)) -> 29.14411515 | O3: =ATAN2((X4-X5),(Y4-Y5)) -> -2.399079053 | P3: =O3/D_R -> -137.4571044 | Q3: A0 | R3: =X2 -> 51.48195245 | S3: =Y2 -> 20.43599206 | T3: A | U3: =R4 -> 79.93 | V3: =S4 -> -5.81 | W3: A | X3: =B14 -> 14.19 | Y3: =C14 -> 10.07 | AA3: C | AB3: =B2 -> 0 | AC3: =C2 -> 0
M4: AB | N4: =mag((X4-X3),(Y4-Y3)) -> 19.90679281 | O4: =ATAN2((X4-X3),(Y4-Y3)) -> -0.02612470827 | P4: =O4/D_R -> -1.496835525 | Q4: A | R4: =R3+N2*COS(O17) -> 79.93 | S4: =S3+N2*SIN(O17) -> -5.81 | T4: C | U4: =U3+N9*COS(Q16+O11) -> 90 | V4: =V3+N9*SIN(Q16+O11) -> -20 | W4: B | X4: =B16 -> 34.09 | Y4: =C16 -> 9.55 | AA4: D | AB4: =AB3+AD2*COS(B3*D_R) -> 100 | AC4: =AC3+AD2*SIN(B3*D_R) -> 0
A5: f12 | B5: =-(B3-E3)*D_R -> 0.872664626 | M5: A0B0 | N5: =mag((X5-X2),(Y5-Y2)) -> 9.717821098 | O5: =ATAN2((X5-X2),(Y5-Y2)) -> 1.137451765 | P5: =O5/D_R -> 65.17118555 | Q5: B | R5: =R6+N3*COS(R16) -> 80.45 | S5: =S6+N3*SIN(R16) -> 14.09 | T5: D | U5: =U3+N10*COS(Q16+O12) -> 90 | V5: =V3+N10*SIN(Q16+O12) -> 80 | W5: B0 | X5: =K16 -> 55.56254868 | Y5: =L16 -> 29.25556015 | AA5: B | AB5: =X4 -> 34.09 | AC5: =Y4 -> 9.55
A6: eif1 | B6: =+COS(B3*D_R) -> 1 | C6: =+SIN(B3*D_R) -> 0 | D6: eif2 | E6: =+COS(E3*D_R) -> 0.6427876097 | F6: =SIN(E3*D_R) -> 0.7660444431 | G6: eif3 | H6: =+COS(H3*D_R) -> 6.125742275e-17 | I6: =SIN(H3*D_R) -> 1 | Q6: B0 | R6: =X5 -> 55.56254868 | S6: =Y5 -> 29.25556015 | T6: B | U6: =R5 -> 80.45 | V6: =S5 -> 14.09 | AA6: A | AB6: =AB2 -> 14.19 | AC6: =AC2 -> 10.07
A7: eif1-eif2 | B7: =+B6-E6 -> 0.3572123903 | C7: =+C6-F6 -> -0.7660444431 | D7: eif1-eif3 | E7: =B6-H6 -> 1 | F7: =C6-I6 -> -1 | G7: eif2-eif3 | H7: =E6-H6 -> 0.6427876097 | I7: =F6-I6 -> -0.2339555569 | M7: q3 | O7: =ATAN2((X15-X14),(Y15-Y14)) -> -0.7451585534 | P7: =O7/D_R -> -42.69444018 | T7: A | U7: =R4 -> 79.93 | V7: =S4 -> -5.81 | W7: Second Position
A8: a2eif1 | B8: =+cmult(E2:F2,B6:C6) -> 30 | C8: -30 | D8: a1eif2 | E8: =+cmult(B2:C2,E6:F6) -> 0 | F8: 0 | G8: a1eif3 | H8: =cmult(B2:C2,(H6:I6)) -> 0 | I8: 0 | M8: h3 | O8: =ATAN2((X16-X17),(Y16-Y17)) -> -0.5472776273 | P8: =O8/D_R -> -31.35669826 | W8: A0 | X8: =K14 -> 51.48195245 | Y8: =L14 -> 20.43599206 | AA8: A | AB8: =X9 -> 31.40708864 | AC8: =Y9 -> -12.65695812
A9: a3eif1 | B9: =cmult(H2:I2,B6:C6) -> 90 | C9: -20 | D9: a3eif2 | E9: =cmult(H2:I2,E6:F6) -> 73.17177373 | F9: 56.08824769 | G9: a2eif3 | H9: =cmult(E2:F2,H6:I6) -> 30 | I9: 30 | M9: AC | N9: =mag((X3-AB3),(Y3-AC3)) -> 17.40002874 | O9: =ATAN2((AB3-X3),(AC3-Y3)) -> -2.524416381 | P9: =O9/D_R -> -144.6384044 | W9: A | X9: =+E14 -> 31.40708864 | Y9: =+F14 -> -12.65695812 | AA9: C | AB9: =E2 -> 30 | AC9: =F2 -> -30
A10: a2eif1-a1eif2 | B10: =+B8-E8 -> 30 | C10: =+C8-F8 -> -30 | D10: a3eif1-a1eif3 | E10: =B9-H8 -> 90 | F10: =C9-I8 -> -20 | G10: a3eif2-a2eif3 | H10: =E9-H9 -> 43.17177373 | I10: =F9-I9 -> 26.08824769 | M10: AD | N10: =mag((AB4-X3),(AC4-Y3)) -> 86.39884837 | O10: =ATAN2((AB4-X3),(AC4-Y3)) -> -0.1168179899 | P10: =O10/D_R -> -6.693177792 | W10: B | X10: =+E16 -> 44.59690518 | Y10: =+F16 -> 2.253076738 | AA10: D | AB10: =AB9+AD2*COS(E3*D_R) -> 94.27876097 | AC10: =AC9+AD2*SIN(E3*D_R) -> 46.60444431
A11: P12 | B11: =CDiv(B10:C10,B7:C7) -> 47.16760381 | C11: 17.16760381 | M11: <BAC | O11: =O9-O4 -> -2.498291673 | P11: =O11/D_R -> -143.1415688 | W11: B0 | X11: =+K16 -> 55.56254868 | Y11: =+L16 -> 29.25556015 | AA11: B | AB11: =X10 -> 44.59690518 | AC11: =Y10 -> 2.253076738
A12: P13 | B12: =CDiv(E10:F10,E7:F7) -> 55 | C12: 35 | M12: <BAD | O12: =O10-O4 -> -0.09069328163 | P12: -5.196342268 | AA12: A | AB12: =X9 -> 31.40708864 | AC12: =Y9 -> -12.65695812
A13: P23 | B13: =CDiv(H10:I10,H7:I7) -> 46.2626129 | C13: 57.42432258 | W13: Third Position
A14: A1 | B14: 14.19 | C14: 10.07 | D14: A2 | E14: =E2:F2+cmult(B14:C14,E6:F6) -> 31.40708864 | F14: -12.65695812 | G14: A3 | H14: =H2:I2+cmult(B14:C14,H6:I6) -> 79.93 | I14: -5.81 | J14: A0 | K14: =ccenter(B14:C14,E14:F14,H14:I14) -> 51.48195245 | L14: 20.43599206 | N14: Dq | O14: =O7-O2 -> 2.125310099 | P14: =P7-P2 -> 121.7712988 | W14: A0 | X14: =K14 -> 51.48195245 | Y14: =L14 -> 20.43599206 | AA14: A | AB14: =X15 -> 79.93 | AC14: =Y15 -> -5.81
B15: 197 | C15: 53 | N15: n | O15: 30 | W15: A | X15: =+H14 -> 79.93 | Y15: =+I14 -> -5.81 | AA15: C | AB15: =H2 -> 90 | AC15: =I2 -> -20
A16: B1 | B16: 34.09 | C16: 9.55 | D16: B2 | E16: =E2:F2+cmult(B16:C16,E6:F6) -> 44.59690518 | F16: 2.253076738 | G16: B3 | H16: =H2:I2+cmult(B16:C16,H6:I6) -> 80.45 | I16: 14.09 | J16: B0 | K16: =ccenter(B16:C16,E16:F16,H16:I16) -> 55.56254868 | L16: 29.25556015 | N16: dq | O16: =O14/O15 -> 0.07084366998 | P16: =O16/D_R -> 4.059043295 | Q16: =Q17+$O$5-2*PI() -> 1.544671619 | R16: =R17+$O$5-2*PI() -> -0.5472776273 | W16: B | X16: =+H16 -> 80.45 | Y16: =+I16 -> 14.09 | AA16: D | AB16: =AB15+AD2*COS(H3*D_R) -> 90 | AC16: =AC15+AD2*SIN(H3*D_R) -> 80
B17: 95 | C17: 39 | N17: 30 | O17: =O2+N17*O16 -> -0.7451585534 | Q17: =FourBar2(N2,N4,N3,N5,-1,(2*PI()+O17-O5)) -> 6.69040516 | R17: 4.598455915 | W17: B0 | X17: =+K16 -> 55.56254868 | Y17: =+L16 -> 29.25556015 | AA17: B | AB17: =X16 -> 80.45 | AC17: =Y16 -> 14.09
P18: q12 | Q18: q13 | R18: q14 | AA18: A | AB18: =X15 -> 79.93 | AC18: =Y15 -> -5.81
P19: =O17/D_R -> -42.69444018 | Q19: =Q16/D_R -> 88.50316448 | R19: =R16/D_R -> -31.35669826
